[Event "*** SCC Grand Prix: Titled Tuesday Blitz"]
[Site "Chess.com"]
[Date "2020.09.29"]
[Round "1"]
[White "Smirnov_Pavel"]
[Black "eCztery"]
[Result "1-0"]
[WhiteElo "2646"]
[BlackElo "2322"]
[TimeControl "180+1"]
[EndTime "10:07:22 PDT"]
[Termination "Smirnov_Pavel won by resignation"]

1. e4 {[%clk 0:03:00.9]} 1... c5 {[%clk 0:02:57]} 2. Nf3 {[%clk 0:03:00.2]} 2...
g6 {[%clk 0:02:56.1]} 3. d4 {[%clk 0:03:01.1]} 3... cxd4 {[%clk 0:02:57]} 4.
Nxd4 {[%clk 0:03:01.4]} 4... Nc6 {[%clk 0:02:56.4]} 5. c4 {[%clk 0:03:01.4]}
5... Nf6 {[%clk 0:02:56]} 6. Nc3 {[%clk 0:03:00.6]} 6... Nxd4 {[%clk 0:02:56.6]}
7. Qxd4 {[%clk 0:03:00.1]} 7... d6 {[%clk 0:02:57.5]} 8. Be2 {[%clk 0:03:00.6]}
8... Bg7 {[%clk 0:02:57.9]} 9. Be3 {[%clk 0:03:01.3]} 9... O-O {[%clk
0:02:58.4]} 10. Qd2 {[%clk 0:03:01.9]} 10... a5 {[%clk 0:02:58.8]} 11. f3 {[%clk
0:02:59.5]} 11... a4 {[%clk 0:02:59.3]} 12. Kf2 {[%clk 0:03:00.2]} 12... Qa5
{[%clk 0:02:55.4]} 13. Rac1 {[%clk 0:02:58]} 13... Be6 {[%clk 0:02:54.6]} 14.
Nd5 {[%clk 0:02:58.5]} 14... Bxd5 {[%clk 0:01:56.7]} 15. Qxa5 {[%clk 0:02:56.4]}
15... Rxa5 {[%clk 0:01:57.6]} 16. cxd5 {[%clk 0:02:56.7]} 16... Nd7 {[%clk
0:01:55.7]} 17. Rc7 {[%clk 0:02:55.7]} 17... Nc5 {[%clk 0:01:55.8]} 18. Rb1
{[%clk 0:02:37.8]} 18... e6 {[%clk 0:01:44.9]} 19. Bg5 {[%clk 0:02:20.3]} 19...
exd5 {[%clk 0:01:36]} 20. exd5 {[%clk 0:02:21.2]} 20... Re8 {[%clk 0:01:28.1]}
21. Bf4 {[%clk 0:02:12.3]} 21... Bd4+ {[%clk 0:01:18.1]} 22. Kf1 {[%clk
0:02:11.4]} 22... Be5 {[%clk 0:01:10]} 23. Bd2 {[%clk 0:02:06.3]} 23... Raa8
{[%clk 0:01:07.3]} 24. g3 {[%clk 0:02:06.2]} 24... Rac8 {[%clk 0:01:05.4]} 25.
Rxc8 {[%clk 0:02:05.4]} 25... Rxc8 {[%clk 0:01:06.3]} 26. b4 {[%clk 0:02:04.2]}
26... Nd7 {[%clk 0:00:56.2]} 27. Bb5 {[%clk 0:02:02.1]} 27... Nb6 {[%clk
0:00:55.8]} 28. Rc1 {[%clk 0:01:43.3]} 28... Rxc1+ {[%clk 0:00:47.6]} 29. Bxc1
{[%clk 0:01:44.2]} 29... Nxd5 {[%clk 0:00:48.2]} 30. a3 {[%clk 0:01:43]} 30...
Nb6 {[%clk 0:00:34.2]} 31. Be3 {[%clk 0:01:40]} 31... Nd5 {[%clk 0:00:34]} 32.
Bc1 {[%clk 0:01:39]} 32... Nb6 {[%clk 0:00:33.7]} 33. Ke2 {[%clk 0:01:38.9]}
33... Nd5 {[%clk 0:00:30.9]} 34. Kd3 {[%clk 0:01:35.5]} 34... Nc3 {[%clk
0:00:31.4]} 35. Bd7 {[%clk 0:01:34.8]} 35... Kf8 {[%clk 0:00:29]} 36. f4 {[%clk
0:01:16.9]} 36... Bf6 {[%clk 0:00:28.3]} 37. Bc8 {[%clk 0:01:10.6]} 37... b6
{[%clk 0:00:24.6]} 38. Be3 {[%clk 0:01:07]} 38... Nd5 {[%clk 0:00:23.6]} 39. Bd2
{[%clk 0:01:04.2]} 39... Ke7 {[%clk 0:00:17.8]} 40. Bb7 {[%clk 0:00:59.7]} 40...
Nc7 {[%clk 0:00:16.6]} 41. Bc6 {[%clk 0:00:48.8]} 41... d5 {[%clk 0:00:16]} 42.
Bxa4 {[%clk 0:00:45.9]} 42... Kd6 {[%clk 0:00:16.5]} 43. Bb3 {[%clk 0:00:44.2]}
43... Nb5 {[%clk 0:00:15.8]} 44. a4 {[%clk 0:00:43.8]} 44... Nd4 {[%clk
0:00:16.2]} 45. Bd1 {[%clk 0:00:44.3]} 45... Nc6 {[%clk 0:00:15.9]} 46. a5
{[%clk 0:00:40.8]} 46... bxa5 {[%clk 0:00:16.8]} 47. bxa5 {[%clk 0:00:40.9]}
47... Kc5 {[%clk 0:00:17.7]} 48. Ba4 {[%clk 0:00:39.6]} 48... Nb4+ {[%clk
0:00:15.6]} 49. Bxb4+ {[%clk 0:00:35.8]} 49... Kxb4 {[%clk 0:00:16.5]} 50. a6
{[%clk 0:00:36.1]} 1-0

[Event "*** SCC Grand Prix: Titled Tuesday Blitz"]
[Site "Chess.com"]
[Date "2020.09.29"]
[Round "1"]
[White "PotapovaM"]
[Black "Kaua18"]
[Result "1-0"]
[WhiteElo "2570"]
[BlackElo "2250"]
[TimeControl "180+1"]
[EndTime "10:07:23 PDT"]
[Termination "PotapovaM won on time"]

1. d4 {[%clk 0:03:00.9]} 1... Nf6 {[%clk 0:03:00.2]} 2. c4 {[%clk 0:03:00.9]}
2... e6 {[%clk 0:03:00.4]} 3. Nf3 {[%clk 0:03:00.8]} 3... b6 {[%clk 0:03:00.5]}
4. a3 {[%clk 0:02:58.8]} 4... Bb7 {[%clk 0:03:00.6]} 5. Nc3 {[%clk 0:02:59]}
5... d5 {[%clk 0:03:00.8]} 6. cxd5 {[%clk 0:02:59.4]} 6... Nxd5 {[%clk
0:03:01.7]} 7. e4 {[%clk 0:02:58.1]} 7... Nxc3 {[%clk 0:03:01.7]} 8. bxc3 {[%clk
0:02:59]} 8... Bxe4 {[%clk 0:03:02.3]} 9. Ne5 {[%clk 0:02:59]} 9... a6 {[%clk
0:02:46.8]} 10. Qh5 {[%clk 0:02:36.7]} 10... g6 {[%clk 0:02:22.6]} 11. Qg4
{[%clk 0:02:35.8]} 11... Bb7 {[%clk 0:02:15]} 12. Bg5 {[%clk 0:02:15.8]} 12...
Be7 {[%clk 0:02:05.3]} 13. Bh6 {[%clk 0:02:15.7]} 13... Nd7 {[%clk 0:02:02]} 14.
Nc4 {[%clk 0:01:20.3]} 14... Nf6 {[%clk 0:01:54.9]} 15. Qd1 {[%clk 0:01:06.7]}
15... Nd5 {[%clk 0:01:44.5]} 16. Qc2 {[%clk 0:01:00.7]} 16... Bf6 {[%clk
0:01:39.6]} 17. Be2 {[%clk 0:00:59.1]} 17... Ne7 {[%clk 0:01:25.8]} 18. O-O
{[%clk 0:00:55.9]} 18... Nf5 {[%clk 0:01:24.4]} 19. Bf4 {[%clk 0:00:52]} 19...
O-O {[%clk 0:01:21.5]} 20. Ne5 {[%clk 0:00:49.7]} 20... Bg7 {[%clk 0:01:18]} 21.
Rad1 {[%clk 0:00:47.7]} 21... Qe7 {[%clk 0:01:17]} 22. a4 {[%clk 0:00:47.3]}
22... c5 {[%clk 0:01:15.5]} 23. dxc5 {[%clk 0:00:44.8]} 23... bxc5 {[%clk
0:01:13.4]} 24. Rd7 {[%clk 0:00:42.2]} 24... Qh4 {[%clk 0:00:41.3]} 25. g3
{[%clk 0:00:42.3]} 25... Qh3 {[%clk 0:00:19.3]} 26. Rxb7 {[%clk 0:00:41.7]}
26... f6 {[%clk 0:00:10.7]} 27. Bg4 {[%clk 0:00:39.4]} 27... fxe5 {[%clk
0:00:05.9]} 28. Bxh3 {[%clk 0:00:38.3]} 28... exf4 {[%clk 0:00:06.4]} 29. Qe4
{[%clk 0:00:35.3]} 29... Rae8 {[%clk 0:00:04.1]} 30. Ra7 {[%clk 0:00:33]} 30...
Bxc3 {[%clk 0:00:02.3]} 31. Rb1 {[%clk 0:00:28.2]} 31... fxg3 {[%clk 0:00:02.7]}
32. hxg3 {[%clk 0:00:27.8]} 32... Bd4 {[%clk 0:00:02.5]} 33. Rbb7 {[%clk
0:00:24]} 33... h5 {[%clk 0:00:02.1]} 34. Qc6 {[%clk 0:00:15.4]} 34... Nxg3
{[%clk 0:00:01.7]} 35. Bxe6+ {[%clk 0:00:14.3]} 1-0

[Event "*** SCC Grand Prix: Titled Tuesday Blitz"]
[Site "Chess.com"]
[Date "2020.09.29"]
[Round "1"]
[White "geordie_derraugh"]
[Black "youngKID"]
[Result "0-1"]
[WhiteElo "2396"]
[BlackElo "2775"]
[TimeControl "180+1"]
[EndTime "10:07:25 PDT"]
[Termination "youngKID won on time"]

1. e4 {[%clk 0:02:59.5]} 1... c5 {[%clk 0:03:00]} 2. Nf3 {[%clk 0:02:59.5]} 2...
e6 {[%clk 0:03:00]} 3. d3 {[%clk 0:02:59.3]} 3... Nc6 {[%clk 0:02:59.3]} 4. g3
{[%clk 0:02:59.4]} 4... Nf6 {[%clk 0:02:56.5]} 5. Bg2 {[%clk 0:02:59.2]} 5... d6
{[%clk 0:02:56.7]} 6. O-O {[%clk 0:02:59.1]} 6... Be7 {[%clk 0:02:57.1]} 7. Re1
{[%clk 0:02:55.5]} 7... O-O {[%clk 0:02:56.8]} 8. Nbd2 {[%clk 0:02:52.6]} 8...
Re8 {[%clk 0:02:54.9]} 9. Nf1 {[%clk 0:02:51.3]} 9... Bf8 {[%clk 0:02:54.4]} 10.
h4 {[%clk 0:02:50.7]} 10... Rb8 {[%clk 0:02:51.6]} 11. Bg5 {[%clk 0:02:25.3]}
11... h6 {[%clk 0:02:49.1]} 12. Be3 {[%clk 0:02:24.4]} 12... b5 {[%clk
0:02:42.1]} 13. N1h2 {[%clk 0:02:23.8]} 13... e5 {[%clk 0:02:41.4]} 14. Nd2
{[%clk 0:02:04.9]} 14... d5 {[%clk 0:02:28.8]} 15. exd5 {[%clk 0:01:48]} 15...
Nxd5 {[%clk 0:02:29.7]} 16. Ne4 {[%clk 0:01:46.7]} 16... Nxe3 {[%clk 0:02:15.1]}
17. Rxe3 {[%clk 0:01:47.6]} 17... Nd4 {[%clk 0:02:13.8]} 18. c3 {[%clk
0:01:36.8]} 18... Nf5 {[%clk 0:02:05.3]} 19. Re2 {[%clk 0:01:16.7]} 19... b4
{[%clk 0:02:00.8]} 20. Qc2 {[%clk 0:01:11.6]} 20... Qa5 {[%clk 0:01:48.3]} 21.
h5 {[%clk 0:00:56]} 21... Be6 {[%clk 0:01:40.5]} 22. g4 {[%clk 0:00:44.2]} 22...
Nh4 {[%clk 0:01:29.9]} 23. c4 {[%clk 0:00:41.6]} 23... f5 {[%clk 0:01:22.2]} 24.
Nd2 {[%clk 0:00:22.6]} 24... fxg4 {[%clk 0:01:06.3]} 25. Rxe5 {[%clk 0:00:19.7]}
25... Nxg2 {[%clk 0:01:00.3]} 26. Kxg2 {[%clk 0:00:19]} 26... Qc7 {[%clk
0:01:00.6]} 27. Re4 {[%clk 0:00:14.4]} 27... Bf5 {[%clk 0:00:57.7]} 28. Rxe8
{[%clk 0:00:14.3]} 28... Rxe8 {[%clk 0:00:58.6]} 29. Nhf1 {[%clk 0:00:13.6]}
29... Qf4 {[%clk 0:00:31.9]} 30. Ng3 {[%clk 0:00:07]} 30... Bd6 {[%clk 0:00:26]}
31. Rd1 {[%clk 0:00:05.6]} 31... Bd7 {[%clk 0:00:19.9]} 32. Ndf1 {[%clk
0:00:05.5]} 32... Bc6+ {[%clk 0:00:19.9]} 33. Kg1 {[%clk 0:00:04.1]} 33... Qf3
{[%clk 0:00:19.2]} 34. Ne3 {[%clk 0:00:02.5]} 34... Bxg3 {[%clk 0:00:17.5]} 0-1

[Event "*** SCC Grand Prix: Titled Tuesday Blitz"]
[Site "Chess.com"]
[Date "2020.09.29"]
[Round "1"]
[White "Akmal_Fayzullaev"]
[Black "KingCrusher275"]
[Result "0-1"]
[WhiteElo "2229"]
[BlackElo "2548"]
[TimeControl "180+1"]
[EndTime "10:07:28 PDT"]
[Termination "KingCrusher275 won by resignation"]

1. e4 {[%clk 0:03:00.9]} 1... c5 {[%clk 0:03:00]} 2. Nc3 {[%clk 0:03:00.4]} 2...
e6 {[%clk 0:03:00.2]} 3. Nge2 {[%clk 0:03:00.6]} 3... Nc6 {[%clk 0:02:59.5]} 4.
g3 {[%clk 0:02:55.8]} 4... d6 {[%clk 0:02:50.9]} 5. Bg2 {[%clk 0:02:55.1]} 5...
Nf6 {[%clk 0:02:51.2]} 6. d4 {[%clk 0:02:54.6]} 6... cxd4 {[%clk 0:02:45.2]} 7.
Nxd4 {[%clk 0:02:55.5]} 7... a6 {[%clk 0:02:33.2]} 8. Nxc6 {[%clk 0:02:24.1]}
8... bxc6 {[%clk 0:02:33.1]} 9. e5 {[%clk 0:02:24.4]} 9... Nd5 {[%clk
0:02:28.5]} 10. exd6 {[%clk 0:02:20.9]} 10... Bxd6 {[%clk 0:02:24.6]} 11. Ne4
{[%clk 0:02:20.6]} 11... Be5 {[%clk 0:02:03.3]} 12. O-O {[%clk 0:02:17]} 12...
O-O {[%clk 0:01:59.4]} 13. Qe2 {[%clk 0:02:14.2]} 13... a5 {[%clk 0:01:43.7]}
14. c4 {[%clk 0:02:13]} 14... Nb6 {[%clk 0:01:32.3]} 15. Rd1 {[%clk 0:02:04.6]}
15... Qe7 {[%clk 0:00:42.4]} 16. Bg5 {[%clk 0:01:45.4]} 16... Qb4 {[%clk
0:00:39.7]} 17. Nd2 {[%clk 0:01:22.5]} 17... Bxb2 {[%clk 0:00:34.4]} 18. Rab1
{[%clk 0:01:01.4]} 18... Ba6 {[%clk 0:00:31.2]} 19. Bxc6 {[%clk 0:00:36.3]}
19... Rac8 {[%clk 0:00:27.2]} 20. Bb5 {[%clk 0:00:35.8]} 20... Bxb5 {[%clk
0:00:26.2]} 21. cxb5 {[%clk 0:00:36.7]} 21... Na4 {[%clk 0:00:24.2]} 22. Ne4
{[%clk 0:00:31.2]} 22... Qc4 {[%clk 0:00:24]} 23. Qf3 {[%clk 0:00:24.1]} 23...
Qxa2 {[%clk 0:00:21.7]} 24. Rxb2 {[%clk 0:00:12]} 24... Qxb2 {[%clk 0:00:20.5]}
25. Nf6+ {[%clk 0:00:12.3]} 25... Kh8 {[%clk 0:00:19.2]} 26. Kg2 {[%clk
0:00:07.3]} 26... Nc5 {[%clk 0:00:18]} 27. Rd2 {[%clk 0:00:05.8]} 27... Qxb5
{[%clk 0:00:16.7]} 28. Qh5 {[%clk 0:00:05.3]} 28... Qb1 {[%clk 0:00:16.7]} 29.
Qh4 {[%clk 0:00:02.7]} 29... Qf5 {[%clk 0:00:15.6]} 30. Rd4 {[%clk 0:00:02.5]}
30... a4 {[%clk 0:00:14.4]} 31. Rf4 {[%clk 0:00:02.4]} 31... Qg6 {[%clk
0:00:13.1]} 32. Rg4 {[%clk 0:00:02.8]} 32... a3 {[%clk 0:00:12]} 33. Nh5 {[%clk
0:00:02.2]} 33... f5 {[%clk 0:00:10]} 34. Bf6 {[%clk 0:00:02]} 34... fxg4 {[%clk
0:00:08.9]} 35. Bxg7+ {[%clk 0:00:02.6]} 35... Kg8 {[%clk 0:00:07.5]} 36. Bd4
{[%clk 0:00:02.1]} 36... Qe4+ {[%clk 0:00:04.8]} 37. Kg1 {[%clk 0:00:02.5]}
37... Qxd4 {[%clk 0:00:05.1]} 0-1

[Event "*** SCC Grand Prix: Titled Tuesday Blitz"]
[Site "Chess.com"]
[Date "2020.09.29"]
[Round "1"]
[White "Salem-AR"]
[Black "Brave_spirit12"]
[Result "1-0"]
[WhiteElo "2920"]
[BlackElo "2434"]
[TimeControl "180+1"]
[EndTime "10:07:29 PDT"]
[Termination "Salem-AR won by resignation"]

1. d4 {[%clk 0:02:49.6]} 1... Nf6 {[%clk 0:02:58.9]} 2. c4 {[%clk 0:02:49.2]}
2... e6 {[%clk 0:02:59.8]} 3. Nf3 {[%clk 0:02:49.2]} 3... d5 {[%clk 0:03:00.7]}
4. Nc3 {[%clk 0:02:49]} 4... Be7 {[%clk 0:03:00.9]} 5. Bg5 {[%clk 0:02:47.5]}
5... c6 {[%clk 0:03:01.3]} 6. e3 {[%clk 0:02:46.9]} 6... O-O {[%clk 0:02:59.5]}
7. Bd3 {[%clk 0:02:46.8]} 7... h6 {[%clk 0:02:57.4]} 8. Bxf6 {[%clk 0:02:44.7]}
8... Bxf6 {[%clk 0:02:55.6]} 9. h4 {[%clk 0:02:45.5]} 9... Re8 {[%clk
0:02:49.4]} 10. Qc2 {[%clk 0:02:29.6]} 10... a6 {[%clk 0:02:38]} 11. g4 {[%clk
0:02:23]} 11... e5 {[%clk 0:02:36]} 12. g5 {[%clk 0:02:19.5]} 12... exd4 {[%clk
0:02:18.8]} 13. gxf6 {[%clk 0:02:05.4]} 13... Qxf6 {[%clk 0:02:17.6]} 14. Nxd4
{[%clk 0:02:06.1]} 14... Qxd4 {[%clk 0:02:16]} 15. O-O-O {[%clk 0:02:06.8]}
15... Qf6 {[%clk 0:02:13.3]} 16. cxd5 {[%clk 0:02:04.9]} 16... Bg4 {[%clk
0:02:10.8]} 17. Rdg1 {[%clk 0:02:02.8]} 17... Bf3 {[%clk 0:02:10.4]} 18. Rh3
{[%clk 0:01:54.4]} 18... cxd5 {[%clk 0:02:00.8]} 19. Rhg3 {[%clk 0:01:46.5]}
19... Nc6 {[%clk 0:02:00.4]} 20. Rxg7+ {[%clk 0:01:38.9]} 20... Qxg7 {[%clk
0:02:01.3]} 21. Rxg7+ {[%clk 0:01:39]} 21... Kxg7 {[%clk 0:02:02.2]} 22. Be2
{[%clk 0:01:29.9]} 22... Be4 {[%clk 0:01:58.6]} 23. Qd1 {[%clk 0:01:16.5]} 23...
Rad8 {[%clk 0:01:49]} 24. Qg1+ {[%clk 0:01:12.1]} 24... Kh7 {[%clk 0:01:47.2]}
25. Qg4 {[%clk 0:01:12.2]} 25... f5 {[%clk 0:01:43.5]} 26. Qf4 {[%clk 0:01:10]}
26... d4 {[%clk 0:01:40.3]} 27. Nxe4 {[%clk 0:01:08.3]} 27... fxe4 {[%clk
0:01:39.7]} 28. Qf7+ {[%clk 0:01:03.3]} 28... Kh8 {[%clk 0:01:37.9]} 29. Qf6+
{[%clk 0:01:01.2]} 29... Kh7 {[%clk 0:01:32.3]} 30. Bg4 {[%clk 0:00:53.1]} 30...
Re5 {[%clk 0:00:42]} 31. Bf5+ {[%clk 0:00:45.4]} 31... Kg8 {[%clk 0:00:40.3]}
32. Be6+ {[%clk 0:00:38]} 32... Kh7 {[%clk 0:00:38.4]} 33. exd4 {[%clk
0:00:37.2]} 33... e3 {[%clk 0:00:23.7]} 34. dxe5 {[%clk 0:00:26]} 34... e2
{[%clk 0:00:21.2]} 35. Bf5+ {[%clk 0:00:25.6]} 35... Kg8 {[%clk 0:00:20.1]} 36.
Qg6+ {[%clk 0:00:24.9]} 36... Kf8 {[%clk 0:00:19.6]} 37. Qf6+ {[%clk 0:00:23.4]}
37... Kg8 {[%clk 0:00:17.9]} 38. Qg6+ {[%clk 0:00:24]} 38... Kf8 {[%clk
0:00:17.4]} 39. Qxh6+ {[%clk 0:00:24.8]} 39... Kf7 {[%clk 0:00:11.2]} 40. Qh5+
{[%clk 0:00:22.6]} 40... Ke7 {[%clk 0:00:10.7]} 41. Qxe2 {[%clk 0:00:20.7]}
41... Nd4 {[%clk 0:00:11.2]} 42. Qg4 {[%clk 0:00:19.7]} 42... Rf8 {[%clk
0:00:10.1]} 43. Qxd4 {[%clk 0:00:17.8]} 43... Rxf5 {[%clk 0:00:09.9]} 44. Qd6+
{[%clk 0:00:18.6]} 1-0

[Event "*** SCC Grand Prix: Titled Tuesday Blitz"]
[Site "Chess.com"]
[Date "2020.09.29"]
[Round "1"]
[White "AlexSuv"]
[Black "szefru"]
[Result "1-0"]
[WhiteElo "2509"]
[BlackElo "2141"]
[TimeControl "180+1"]
[EndTime "10:07:29 PDT"]
[Termination "AlexSuv won by checkmate"]

1. d4 {[%clk 0:02:59.3]} 1... Nf6 {[%clk 0:01:31.2]} 2. c4 {[%clk 0:02:57]} 2...
g6 {[%clk 0:01:31.3]} 3. Nc3 {[%clk 0:02:55.9]} 3... Bg7 {[%clk 0:01:32.1]} 4.
e4 {[%clk 0:02:56.1]} 4... d6 {[%clk 0:01:33]} 5. Nf3 {[%clk 0:02:56.7]} 5...
O-O {[%clk 0:01:33.3]} 6. Be2 {[%clk 0:02:57.2]} 6... e5 {[%clk 0:01:33.6]} 7.
Be3 {[%clk 0:02:57]} 7... Nc6 {[%clk 0:01:34]} 8. d5 {[%clk 0:02:53.9]} 8... Ne7
{[%clk 0:01:33.7]} 9. Nd2 {[%clk 0:02:54.1]} 9... Ne8 {[%clk 0:01:33.5]} 10. c5
{[%clk 0:02:49.5]} 10... f5 {[%clk 0:01:33]} 11. f3 {[%clk 0:02:49.6]} 11... f4
{[%clk 0:01:33]} 12. Bf2 {[%clk 0:02:49.7]} 12... g5 {[%clk 0:01:33.2]} 13. Nc4
{[%clk 0:02:46.2]} 13... h5 {[%clk 0:01:30.7]} 14. h4 {[%clk 0:02:36]} 14... Ng6
{[%clk 0:01:26.5]} 15. hxg5 {[%clk 0:02:35.9]} 15... Qxg5 {[%clk 0:01:27.4]} 16.
Bf1 {[%clk 0:02:31.1]} 16... b6 {[%clk 0:01:17.3]} 17. cxd6 {[%clk 0:02:27.1]}
17... cxd6 {[%clk 0:01:18.1]} 18. Qa4 {[%clk 0:02:10.2]} 18... h4 {[%clk
0:00:56.7]} 19. Qc6 {[%clk 0:01:53.1]} 19... Rb8 {[%clk 0:00:53.3]} 20. Nxd6
{[%clk 0:01:53.2]} 20... Nxd6 {[%clk 0:00:53.4]} 21. Qxd6 {[%clk 0:01:54.1]}
21... Bb7 {[%clk 0:00:45.4]} 22. O-O-O {[%clk 0:01:50]} 22... Rfd8 {[%clk
0:00:38.9]} 23. Qe6+ {[%clk 0:01:44]} 23... Kh7 {[%clk 0:00:37.6]} 24. Bb5
{[%clk 0:01:42.7]} 24... Bc8 {[%clk 0:00:31.6]} 25. Qc6 {[%clk 0:01:33.7]} 25...
Bd7 {[%clk 0:00:31.1]} 26. Qc4 {[%clk 0:01:33.8]} 26... Rbc8 {[%clk 0:00:23.1]}
27. Bc6 {[%clk 0:01:25]} 27... Qf6 {[%clk 0:00:16.5]} 28. Qa4 {[%clk 0:01:16.7]}
28... Bxc6 {[%clk 0:00:16.5]} 29. dxc6 {[%clk 0:01:16.7]} 29... Rxd1+ {[%clk
0:00:17]} 30. Rxd1 {[%clk 0:01:09.6]} 30... Rxc6 {[%clk 0:00:17.5]} 31. Qxa7
{[%clk 0:01:08]} 31... b5 {[%clk 0:00:17.1]} 32. a3 {[%clk 0:01:05]} 32... b4
{[%clk 0:00:18]} 33. axb4 {[%clk 0:01:04.1]} 33... Kh6 {[%clk 0:00:18.4]} 34. b5
{[%clk 0:01:02.4]} 34... Rc8 {[%clk 0:00:17.8]} 35. Qd7 {[%clk 0:01:00]} 35...
Rb8 {[%clk 0:00:16.9]} 36. Rd6 {[%clk 0:00:48.8]} 36... Qf8 {[%clk 0:00:16.9]}
37. b6 {[%clk 0:00:44.7]} 37... Bf6 {[%clk 0:00:14.1]} 38. Rc6 {[%clk
0:00:37.2]} 38... Rd8 {[%clk 0:00:12.9]} 39. Qe6 {[%clk 0:00:34.1]} 39... Kg7
{[%clk 0:00:13.2]} 40. Bc5 {[%clk 0:00:32.1]} 40... Qg8 {[%clk 0:00:12.9]} 41.
Qxf6+ {[%clk 0:00:32]} 41... Kh6 {[%clk 0:00:12.9]} 42. Qxh4+ {[%clk 0:00:30.7]}
42... Kg7 {[%clk 0:00:12.8]} 43. Qf6+ {[%clk 0:00:30.6]} 43... Kh6 {[%clk
0:00:12.9]} 44. b7 {[%clk 0:00:30.6]} 44... Rb8 {[%clk 0:00:09.8]} 45. Rb6
{[%clk 0:00:30]} 45... Qc4 {[%clk 0:00:09.3]} 46. Qxg6# {[%clk 0:00:29.5]} 1-0

[Event "*** SCC Grand Prix: Titled Tuesday Blitz"]
[Site "Chess.com"]
[Date "2020.09.29"]
[Round "1"]
[White "Artem_Sadovsky"]
[Black "parintele_chess"]
[Result "1/2-1/2"]
[WhiteElo "2500"]
[BlackElo "2146"]
[TimeControl "180+1"]
[EndTime "10:07:32 PDT"]
[Termination "Game drawn by repetition"]

1. Nf3 {[%clk 0:02:55.6]} 1... d5 {[%clk 0:02:58.8]} 2. c4 {[%clk 0:02:55.4]}
2... c6 {[%clk 0:02:58.1]} 3. b3 {[%clk 0:02:55.7]} 3... Nf6 {[%clk 0:02:58]} 4.
Bb2 {[%clk 0:02:55.8]} 4... g6 {[%clk 0:02:56.1]} 5. e3 {[%clk 0:02:47.7]} 5...
Bg7 {[%clk 0:02:54.7]} 6. Be2 {[%clk 0:02:48.2]} 6... O-O {[%clk 0:02:48.2]} 7.
O-O {[%clk 0:02:48.3]} 7... Nbd7 {[%clk 0:02:45.7]} 8. d4 {[%clk 0:02:42.5]}
8... Ne4 {[%clk 0:02:44]} 9. Nbd2 {[%clk 0:02:41.7]} 9... Ndf6 {[%clk
0:02:41.5]} 10. Ne5 {[%clk 0:02:40.5]} 10... Nxd2 {[%clk 0:02:36.8]} 11. Qxd2
{[%clk 0:02:41.4]} 11... Ne4 {[%clk 0:02:36.9]} 12. Qe1 {[%clk 0:02:38.9]} 12...
Nd6 {[%clk 0:02:22.6]} 13. Rc1 {[%clk 0:02:24.2]} 13... f6 {[%clk 0:02:10.1]}
14. Nd3 {[%clk 0:02:12.7]} 14... e6 {[%clk 0:02:09.2]} 15. Ba3 {[%clk 0:02:09]}
15... Re8 {[%clk 0:02:01.3]} 16. Bf3 {[%clk 0:02:01.1]} 16... e5 {[%clk
0:01:49.9]} 17. dxe5 {[%clk 0:01:37.1]} 17... fxe5 {[%clk 0:01:50.8]} 18. e4
{[%clk 0:01:20.7]} 18... dxe4 {[%clk 0:01:40.5]} 19. Bxe4 {[%clk 0:01:21.6]}
19... Nxe4 {[%clk 0:01:40.2]} 20. Qxe4 {[%clk 0:01:22.5]} 20... Bf5 {[%clk
0:01:40.7]} 21. Qe3 {[%clk 0:01:04.4]} 21... Qxd3 {[%clk 0:01:40]} 22. Qg5
{[%clk 0:01:05]} 22... h6 {[%clk 0:01:16.2]} 23. Qh4 {[%clk 0:01:04.5]} 23...
Qe4 {[%clk 0:01:11.3]} 24. Qg3 {[%clk 0:01:04.6]} 24... Rad8 {[%clk 0:01:07.4]}
25. Rfe1 {[%clk 0:01:02.5]} 25... Qf4 {[%clk 0:01:05]} 26. Qc3 {[%clk 0:01:03]}
26... e4 {[%clk 0:01:00.1]} 27. Qa5 {[%clk 0:01:02.9]} 27... Bd4 {[%clk
0:00:56.9]} 28. Re2 {[%clk 0:00:57.9]} 28... e3 {[%clk 0:00:38.5]} 29. Rf1
{[%clk 0:00:57.1]} 29... exf2+ {[%clk 0:00:37.5]} 30. Kh1 {[%clk 0:00:56.6]}
30... Bb6 {[%clk 0:00:32.1]} 31. Rxe8+ {[%clk 0:00:55.4]} 31... Rxe8 {[%clk
0:00:32.4]} 32. Qc3 {[%clk 0:00:54.9]} 32... Qd4 {[%clk 0:00:30.5]} 33. Qg3
{[%clk 0:00:52.5]} 33... Re1 {[%clk 0:00:25.4]} 34. Rxe1 {[%clk 0:00:52.2]}
34... fxe1=Q+ {[%clk 0:00:22.4]} 35. Qxe1 {[%clk 0:00:52.9]} 35... Qe3 {[%clk
0:00:19.4]} 36. Qd1 {[%clk 0:00:51.6]} 36... Bd3 {[%clk 0:00:18.1]} 37. c5
{[%clk 0:00:45.5]} 37... Ba5 {[%clk 0:00:09.4]} 38. b4 {[%clk 0:00:45.6]} 38...
Bc7 {[%clk 0:00:07.8]} 39. Qb3+ {[%clk 0:00:32.7]} 39... Kg7 {[%clk 0:00:06]}
40. Bb2+ {[%clk 0:00:31.4]} 40... Be5 {[%clk 0:00:05.7]} 41. Bxe5+ {[%clk
0:00:21.4]} 41... Qxe5 {[%clk 0:00:06.5]} 42. h3 {[%clk 0:00:22.3]} 42... Qe1+
{[%clk 0:00:06.5]} 43. Kh2 {[%clk 0:00:22.4]} 43... Qe5+ {[%clk 0:00:07.3]} 44.
Kh1 {[%clk 0:00:23.1]} 44... Qe1+ {[%clk 0:00:07.5]} 45. Kh2 {[%clk 0:00:23.8]}
45... Qe5+ {[%clk 0:00:07.4]} 46. Kh1 {[%clk 0:00:24.4]} 1/2-1/2